fUST/lending_fUST_20250726
["ID","MTS","AMOUNT","RATE_DAILY","PERIOD"]
[375135085,1753537845171,-460.0,0.00021095,2]
[375135086,1753537845181,-460.0,0.00021095,2]
[375135087,1753537845191,-536.7,0.00021095,2]
[375135088,1753537845201,-460.0,0.00021095,2]
[375135090,1753537845210,-460.0,0.00021095,2]
[375135091,1753537845220,-460.0,0.00021095,2]
[375135092,1753537845229,-689.88,0.00021095,2]
[375135093,1753537845239,-1210.18,0.00021095,2]
[375135094,1753537845250,-728.42,0.00021095,2]
[375135095,1753537845260,-460.0,0.00021369,2]
[375135096,1753537845270,-460.0,0.00021369,2]
[375135097,1753537845280,-560.52,0.00021369,2]
[375135098,1753537845291,-460.0,0.00021369,2]
[375135099,1753537845300,-249.13,0.00021369,2]
[375135100,1753537845310,-460.0,0.00021369,2]
[375135101,1753537845319,-460.0,0.00021369,2]
[375135102,1753537845329,-460.0,0.00021369,2]
[375135103,1753537845339,-460.0,0.00021369,2]
[375135104,1753537845349,-460.0,0.00021369,2]
[375135105,1753537845358,-460.0,0.00021369,2]
[375135106,1753537845368,-460.0,0.00021369,2]
[375135107,1753537845378,-1714.97,0.00021369,2]
[375135108,1753537845387,-460.0,0.00021369,2]
[375135109,1753537845398,-460.0,0.00021369,2]
[375135110,1753537845407,-460.0,0.00021369,2]
[375135111,1753537845418,-2457.85,0.00021369,2]
[375135112,1753537845429,-1266.77,0.00021369,2]
[375135113,1753537845439,-460.0,0.00021369,2]
[375135114,1753537845450,-977.09,0.00021369,2]
[375135115,1753537845460,-2089.45,0.00021369,2]
[375135116,1753537845471,-583.7,0.00021369,2]
[375135117,1753537845482,-460.0,0.00021369,2]
[375135118,1753537845493,-561.63,0.00021369,2]
[375135119,1753537845503,-191.69,0.00021369,2]
[375135120,1753537845513,-460.0,0.00021369,2]
[375135121,1753537845523,-460.0,0.00021369,2]
[375135122,1753537845533,-2069.34,0.00021369,2]
[375135123,1753537845542,-460.0,0.00021369,2]
[375135124,1753537845552,-573.86771873,0.00021369,2]
[375135125,1753537845562,-694.22,0.00021369,2]
[375135126,1753537845572,-460.0,0.00021369,2]
[375135127,1753537845582,-783.29,0.00021369,2]
[375135128,1753537845592,-460.0,0.00021369,2]
[375135129,1753537845602,-1284.3,0.00021369,2]
[375135130,1753537845612,-460.0,0.00021369,2]
[375135131,1753537845622,-460.0,0.00021369,2]
[375135132,1753537845632,-460.0,0.00021369,2]
[375135133,1753537845642,-460.0,0.00021369,2]
[375135134,1753537845652,-265.81245646,0.00021369,2]
[375135135,1753537845662,-460.0,0.00021369,2]
[375135136,1753537845672,-689.88,0.00021369,2]
[375135137,1753537845682,-1210.18,0.00021369,2]
[375135138,1753537845692,-728.42,0.00021369,2]
[375135139,1753537845701,-2000.0,0.00021416,2]
[375135140,1753537845712,-360.0,0.00021546,2]
[375135142,1753537845723,-1156.31,0.000216,2]
[375135144,1753537845732,-179.80221756,0.00021611,2]
[375135145,1753537845742,-213.58859441,0.00021643,2]
[375135146,1753537845752,-460.0,0.00021643,2]
[375135147,1753537845764,-560.52,0.00021643,2]
[375135148,1753537845775,-460.0,0.00021643,2]
[375135149,1753537845785,-460.0,0.00021643,2]
[375135150,1753537845796,-460.0,0.00021643,2]
[375135151,1753537845806,-460.0,0.00021643,2]
[375135152,1753537845816,-460.0,0.00021643,2]
[375135153,1753537845827,-460.0,0.00021643,2]
[375135154,1753537845837,-460.0,0.00021643,2]
[375135155,1753537845847,-460.0,0.00021643,2]
[375135156,1753537845857,-460.0,0.00021643,2]
[375135157,1753537845868,-1714.97,0.00021643,2]
[375135158,1753537845878,-460.0,0.00021643,2]
[375135159,1753537845889,-336.36,0.00021643,2]
[375135160,1753537845898,-460.0,0.00021643,2]
[375135161,1753537845908,-2457.85,0.00021643,2]
[375135162,1753537845919,-1266.77,0.00021643,2]
[375135163,1753537845931,-460.0,0.00021643,2]
[375135164,1753537845940,-977.09,0.00021643,2]
[375135166,1753537845950,-2089.45,0.00021643,2]
[375135168,1753537845960,-583.7,0.00021643,2]
[375135170,1753537845970,-460.0,0.00021643,2]
[375135172,1753537845981,-561.63,0.00021643,2]
[375135174,1753537845990,-460.0,0.00021643,2]
[375135176,1753537846001,-460.0,0.00021643,2]
[375135178,1753537846012,-2069.34,0.00021643,2]
[375135180,1753537846022,-460.0,0.00021643,2]
[375135182,1753537846032,-694.22,0.00021643,2]
[375135183,1753537846041,-460.0,0.00021643,2]
[375135184,1753537846052,-783.29,0.00021643,2]
[375135185,1753537846065,-460.0,0.00021643,2]
[375135186,1753537846075,-1284.3,0.00021643,2]
[375135187,1753537846085,-460.0,0.00021643,2]
[375135188,1753537846095,-460.0,0.00021643,2]
[375135189,1753537846105,-460.0,0.00021643,2]
[375135190,1753537846115,-460.0,0.00021643,2]
[375135191,1753537846124,-257.84605777,0.00021643,2]
[375135193,1753537846134,-689.88,0.00021643,2]
[375135195,1753537846144,-1210.18,0.00021643,2]
[375135197,1753537846153,-728.42,0.00021643,2]
[375135199,1753537846164,-738.196098,0.00021848,2]
[375135201,1753537846174,-460.0,0.00021917,2]
[375135203,1753537846184,-560.52,0.00021917,2]
[375135205,1753537846194,-460.0,0.00021917,2]
[375135207,1753537846203,-460.0,0.00021917,2]
[375135209,1753537846212,-460.0,0.00021917,2]
[375135211,1753537846223,-460.0,0.00021917,2]
[375135213,1753537846232,-460.0,0.00021917,2]
[375135215,1753537846242,-460.0,0.00021917,2]
[375135217,1753537846252,-460.0,0.00021917,2]
[375135219,1753537846263,-460.0,0.00021917,2]
[375135221,1753537846272,-460.0,0.00021917,2]
[375135224,1753537846282,-1714.97,0.00021917,2]
[375135226,1753537846291,-460.0,0.00021917,2]
[375135228,1753537846300,-460.0,0.00021917,2]
[375135229,1753537846310,-2457.85,0.00021917,2]
[375135232,1753537846320,-1266.77,0.00021917,2]
[375135234,1753537846329,-460.0,0.00021917,2]
[375135236,1753537846339,-977.09,0.00021917,2]
[375135238,1753537846349,-2089.45,0.00021917,2]
[375135240,1753537846359,-583.7,0.00021917,2]
[375135242,1753537846368,-460.0,0.00021917,2]
[375135244,1753537846378,-561.63,0.00021917,2]
[375135246,1753537846387,-460.0,0.00021917,2]
[375135248,1753537846397,-460.0,0.00021917,2]
[375135250,1753537846407,-2069.34,0.00021917,2]
[375135252,1753537846416,-460.0,0.00021917,2]
[375135254,1753537846426,-694.22,0.00021917,2]
[375135256,1753537846436,-460.0,0.00021917,2]
[375135258,1753537846445,-783.29,0.00021917,2]
[375135260,1753537846455,-460.0,0.00021917,2]
[375135262,1753537846465,-1284.3,0.00021917,2]
[375135264,1753537846475,-460.0,0.00021917,2]
[375135266,1753537846485,-460.0,0.00021917,2]
[375135268,1753537846495,-460.0,0.00021917,2]
[375135270,1753537846509,-460.0,0.00021917,2]
[375135272,1753537846519,-689.88,0.00021917,2]
[375135274,1753537846529,-1210.18,0.00021917,2]
[375135276,1753537846539,-728.42,0.00021917,2]
[375135278,1753537846549,-2500.0,0.00021964,2]
[375135280,1753537846559,-1246.53,0.00022,7]
[375135282,1753537846569,-460.0,0.00022094,2]
[375135284,1753537846579,-498.15776806,0.00022191,2]
[375135286,1753537846590,-560.52,0.00022191,2]
[375135288,1753537846600,-229.53,0.00022191,2]
[375135290,1753537846610,-460.0,0.00022191,2]
[375135292,1753537846620,-460.0,0.00022191,2]
[375135294,1753537846630,-460.0,0.00022191,2]
[375135297,1753537846640,-460.0,0.00022191,2]
[375135299,1753537846650,-460.0,0.00022191,2]
[375135301,1753537846660,-460.0,0.00022191,2]
[375135303,1753537846669,-460.0,0.00022191,2]
[375135305,1753537846679,-460.0,0.00022191,2]
[375135307,1753537846689,-1714.97,0.00022191,2]
[375135309,1753537846699,-460.0,0.00022191,2]
[375135311,1753537846708,-460.0,0.00022191,2]
[375135313,1753537846718,-2457.85,0.00022191,2]
[375135315,1753537846727,-1266.77,0.00022191,2]
[375135317,1753537846737,-476.28,0.00022191,2]
[375135319,1753537846746,-977.09,0.00022191,2]
[375135321,1753537846756,-2089.45,0.00022191,2]
[375135323,1753537846766,-583.7,0.00022191,2]
[375135325,1753537846779,-460.0,0.00022191,2]
[375135327,1753537846789,-561.63,0.00022191,2]
[375135329,1753537846798,-460.0,0.00022191,2]
[375135331,1753537846808,-460.0,0.00022191,2]
[375135333,1753537846819,-2069.34,0.00022191,2]
[375135335,1753537846828,-460.0,0.00022191,2]
[375135337,1753537846838,-694.22,0.00022191,2]
[375135339,1753537846849,-460.0,0.00022191,2]
[375135341,1753537846858,-783.29,0.00022191,2]
[375135343,1753537846869,-460.0,0.00022191,2]
[375135346,1753537846879,-1284.3,0.00022191,2]
[375135348,1753537846889,-460.0,0.00022191,2]
[375135350,1753537846898,-167.96454124,0.00022191,2]
[375135352,1753537846908,-460.0,0.00022191,2]
[375135353,1753537846919,-460.0,0.00022191,2]
[375135356,1753537846931,-689.88,0.00022191,2]
[375135358,1753537846941,-1210.18,0.00022191,2]
[375135360,1753537846951,-728.42,0.00022191,2]
[375135362,1753537846960,-392.61,0.00022364,2]
[375135364,1753537846970,-560.52,0.00022465,2]
[375135365,1753537846980,-460.0,0.00022465,2]
[375135368,1753537846989,-460.0,0.00022465,2]
[375135370,1753537847000,-460.0,0.00022465,2]
[375135372,1753537847010,-1772.67,0.00022465,2]
[375135374,1753537847020,-460.0,0.00022465,2]
[375135375,1753537847030,-460.0,0.00022465,2]
[375135377,1753537847039,-460.0,0.00022465,2]
[375135380,1753537847049,-460.0,0.00022465,2]
[375135382,1753537847058,-460.0,0.00022465,2]
[375135383,1753537847069,-1714.97,0.00022465,2]
[375135386,1753537847079,-460.0,0.00022465,2]
[375135387,1753537847089,-460.0,0.00022465,2]
[375135390,1753537847100,-2457.85,0.00022465,2]
[375135392,1753537847110,-1266.77,0.00022465,2]
[375135394,1753537847121,-977.09,0.00022465,2]
[375135396,1753537847132,-2089.45,0.00022465,2]
[375135398,1753537847144,-583.7,0.00022465,2]
[375135400,1753537847154,-460.0,0.00022465,2]
[375135402,1753537847163,-561.63,0.00022465,2]
[375135404,1753537847174,-460.0,0.00022465,2]
[375135406,1753537847183,-460.0,0.00022465,2]
[375135408,1753537847193,-2069.34,0.00022465,2]
[375135410,1753537847203,-460.0,0.00022465,2]
[375135412,1753537847213,-694.22,0.00022465,2]
[375135414,1753537847223,-421.76,0.00022465,2]
[375135416,1753537847233,-783.29,0.00022465,2]
[375135418,1753537847243,-460.0,0.00022465,2]
[375135420,1753537847253,-1284.3,0.00022465,2]
[375135431,1753537847264,-229.50879778,0.00022465,2]
[375135433,1753537847356,-460.0,0.00022465,2]
[375135435,1753537847367,-367.90522131,0.00022465,2]
[375135437,1753537847376,-689.88,0.00022465,2]
[375135439,1753537847386,-1210.18,0.00022465,2]
[375135441,1753537847397,-728.42,0.00022465,2]
[375135443,1753537847406,-159.906695,0.00022505,2]
[375135445,1753537847416,-2999.99000004,0.00022512,2]
[375135447,1753537847425,-648.0,0.00022555,2]
[375135449,1753537847434,-2157.0,0.00022555,2]
[375135451,1753537847444,-969.0,0.00022555,2]
[375135453,1753537847453,-224.216024,0.00022603,2]
[375135455,1753537847464,-560.0,0.00022642,2]
[375135457,1753537847474,-560.52,0.00022739,2]
[375135459,1753537847483,-460.0,0.00022739,2]
[375135461,1753537847493,-460.0,0.00022739,2]
[375135463,1753537847503,-460.0,0.00022739,2]
[375135465,1753537847512,-351.94,0.00022739,2]
[375135467,1753537847521,-460.0,0.00022739,2]
[375135469,1753537847530,-532.76691337,0.00022739,2]
[375135471,1753537847540,-460.0,0.00022739,2]
[375135473,1753537847549,-460.0,0.00022739,2]
[375135475,1753537847559,-1714.97,0.00022739,2]
[375135477,1753537847569,-460.0,0.00022739,2]
[375135479,1753537847578,-460.0,0.00022739,2]
[375135481,1753537847587,-2457.85,0.00022739,2]
[375135483,1753537847598,-1266.77,0.00022739,2]
[375135485,1753537847607,-977.09,0.00022739,2]
[375135487,1753537847617,-2089.45,0.00022739,2]
[375135489,1753537847627,-583.7,0.00022739,2]
[375135491,1753537847636,-460.0,0.00022739,2]
[375135493,1753537847646,-561.63,0.00022739,2]
[375135495,1753537847655,-460.0,0.00022739,2]
[375135497,1753537847665,-460.0,0.00022739,2]
[375135499,1753537847674,-2069.34,0.00022739,2]
[375135501,1753537847684,-460.0,0.00022739,2]
[375135503,1753537847694,-694.22,0.00022739,2]
[375135505,1753537847703,-783.29,0.00022739,2]
[375135507,1753537847713,-460.0,0.00022739,2]
[375135509,1753537847723,-1284.3,0.00022739,2]
[375135511,1753537847732,-460.0,0.00022739,2]
[375135513,1753537847741,-689.88,0.00022739,2]
[375135515,1753537847751,-1210.18,0.00022739,2]
[375135517,1753537847760,-728.42,0.00022739,2]
[375135519,1753537847770,-738.196098,0.00022771,2]
[375135521,1753537847780,-178.204927,0.00022822,2]
[375135523,1753537847790,-23436.39720458,0.000229,7]
[375135525,1753537847800,-1908.81,0.000229,7]
[375135527,1753537847810,-160.0,0.000229,7]
[375135529,1753537847820,-12629.83479014,0.000229,7]
[375135531,1753537847831,-214.8008262,0.000229,7]
[375135533,1753537847840,-476.98041219,0.000229,7]
[375135535,1753537847850,-533.06,0.00022915,7]
[375135537,1753537847859,-568.6,0.00022935,2]
[375135539,1753537847869,-511.26,0.00022998,6]
[375135541,1753537847878,-160.0,0.00023,3]
[375135543,1753537847888,-160.0,0.00023,2]
[375135545,1753537847898,-560.52,0.00023013,2]
[375135547,1753537847908,-270.58579908,0.00023013,2]
[375135549,1753537847917,-460.0,0.00023013,2]
[375135551,1753537847929,-195.30421149,0.00023013,2]
[375135553,1753537847939,-460.0,0.00023013,2]
[375135555,1753537847948,-460.0,0.00023013,2]
[375135557,1753537847957,-460.0,0.00023013,2]
[375135559,1753537847969,-1714.97,0.00023013,2]
[375135561,1753537847979,-460.0,0.00023013,2]
[375135563,1753537847988,-460.0,0.00023013,2]
[375135565,1753537847998,-2457.85,0.00023013,2]
[375135567,1753537848008,-1266.77,0.00023013,2]
[375135569,1753537848018,-977.09,0.00023013,2]
[375135571,1753537848027,-2089.45,0.00023013,2]
[375135573,1753537848037,-583.7,0.00023013,2]
[375135575,1753537848046,-376.40490601,0.00023013,2]
[375135578,1753537848056,-561.63,0.00023013,2]
[375135579,1753537848065,-259.200942,0.00023013,2]
[375135582,1753537848075,-155.7,0.00023013,2]
[375135583,1753537848084,-2069.34,0.00023013,2]
[375135586,1753537848094,-460.0,0.00023013,2]
[375135587,1753537848103,-694.22,0.00023013,2]
[375135589,1753537848112,-783.29,0.00023013,2]
[375135591,1753537848122,-460.0,0.00023013,2]
[375135593,1753537848131,-1284.3,0.00023013,2]
[375135595,1753537848141,-460.0,0.00023013,2]
[375135598,1753537848150,-689.88,0.00023013,2]
[375135599,1753537848159,-1210.18,0.00023013,2]
[375135601,1753537848169,-728.42,0.00023013,2]
[375135604,1753537848178,-151.0,0.00023014,2]
[375135606,1753537848187,-151.0,0.00023014,2]
[375135608,1753537848196,-151.0,0.00023014,2]
[375135610,1753537848207,-151.0,0.00023014,2]
[375135612,1753537848217,-151.0,0.00023014,2]
[375135614,1753537848226,-151.28167398,0.00023014,2]
[375135616,1753537848235,-151.0,0.00023014,2]
[375135618,1753537848245,-151.0,0.00023014,2]
[375135620,1753537848254,-649.0,0.00023014,2]
[375135621,1753537848263,-151.0,0.00023014,2]
[375135624,1753537848273,-151.0,0.00023014,2]
[375135626,1753537848283,-151.92336044,0.00023014,2]
[375135627,1753537848292,-151.0,0.00023014,2]
[375135630,1753537848302,-151.05000522,0.00023014,2]
[375135631,1753537848311,-151.0,0.00023014,2]
[375135633,1753537848321,-151.0,0.00023014,2]
[375135635,1753537848330,-151.0,0.00023014,2]
[375135637,1753537848339,-151.0,0.00023014,2]
[375135639,1753537848349,-518.0,0.00023014,2]
[375135642,1753537848360,-533.06,0.00023015,2]
[375135643,1753537848369,-568.6,0.00023035,4]
[375135645,1753537848378,-206.18,0.00023043,2]
[375135648,1753537848388,-511.26,0.00023098,3]
[375135650,1753537848398,-533.06,0.00023115,7]
[375135651,1753537848407,-568.62,0.00023135,4]
[375135653,1753537848416,-660.0,0.0002319,2]
[375135655,1753537848425,-160.0126474,0.00023205,2]
[375135658,1753537848435,-577.8715194,0.00023205,2]
[375135659,1753537848445,-178.3347596,0.00023205,2]
[375135662,1753537848454,-178.3347596,0.00023205,2]
[375135663,1753537848464,-160.0126474,0.00023205,2]
[375135665,1753537848473,-577.8715194,0.00023205,2]
[375135668,1753537848483,-533.06,0.00023215,2]
[375135670,1753537848492,-12500.0,0.00023246,7]
[375135671,1753537848502,-560.52,0.00023287,2]
[375135674,1753537848512,-460.0,0.00023287,2]
[375135676,1753537848522,-460.0,0.00023287,2]
[375135678,1753537848531,-460.0,0.00023287,2]
[375135679,1753537848541,-460.0,0.00023287,2]
[375135681,1753537848550,-1714.97,0.00023287,2]
[375135683,1753537848559,-460.0,0.00023287,2]
[375135685,1753537848569,-460.0,0.00023287,2]
[375135687,1753537848578,-2457.85,0.00023287,2]
[375135689,1753537848587,-1266.77,0.00023287,2]
[375135691,1753537848596,-977.09,0.00023287,2]
[375135693,1753537848605,-2089.45,0.00023287,2]
[375135695,1753537848615,-583.7,0.00023287,2]
[375135697,1753537848624,-561.63,0.00023287,2]
[375135699,1753537848633,-2069.34,0.00023287,2]
[375135701,1753537848643,-694.22,0.00023287,2]
[375135703,1753537848652,-783.29,0.00023287,2]
[375135705,1753537848662,-460.0,0.00023287,2]
[375135707,1753537848671,-1284.3,0.00023287,2]
[375135709,1753537848680,-460.0,0.00023287,2]
[375135711,1753537848690,-689.88,0.00023287,2]
[375135713,1753537848698,-1210.18,0.00023287,2]
[375135715,1753537848708,-728.42,0.00023287,2]
[375135717,1753537848717,-151.0,0.00023288,2]
[375135719,1753537848726,-649.0,0.00023288,2]
[375135721,1753537848736,-198.0,0.00023288,2]
[375135723,1753537848745,-151.0,0.00023288,2]
[375135725,1753537848755,-518.0,0.00023288,2]
[375135727,1753537848764,-4730.68,0.000233,7]
[375135729,1753537848773,-533.06,0.00023315,6]
[375135731,1753537848782,-533.06,0.00023415,4]
[375135733,1753537848792,-12500.0,0.00023443,7]
[375135735,1753537848802,-409.0,0.00023456,2]
[375135737,1753537848811,-533.06,0.00023515,6]
[375135739,1753537848820,-560.52,0.00023561,2]
[375135741,1753537848829,-460.0,0.00023561,2]
[375135743,1753537848838,-460.0,0.00023561,2]
[375135745,1753537848848,-260.25231298,0.00023561,2]
[375135747,1753537848857,-460.0,0.00023561,2]
[375135749,1753537848866,-1714.97,0.00023561,2]
[375135751,1753537848874,-460.0,0.00023561,2]
[375135753,1753537848883,-151.0,0.00023561,7]
[375135754,1753537848892,-151.0,0.00023561,7]
[375135756,1753537848902,-460.0,0.00023561,2]
[375135758,1753537848911,-2457.85,0.00023561,2]
[375135760,1753537848927,-1266.77,0.00023561,2]
[375135763,1753537848939,-977.09,0.00023561,2]
[375135764,1753537848949,-2089.45,0.00023561,2]
[375135766,1753537848959,-583.7,0.00023561,2]
[375135768,1753537848969,-547.68774569,0.00023561,2]
[375135796,1753537849376,-460.0,0.00019178,2]
[375135797,1753537849386,-460.0,0.00019178,2]
[375135799,1753537849396,-460.0,0.00019178,2]
[375135801,1753537849406,-460.0,0.00019452,2]
[375135803,1753537849415,-460.0,0.00019452,2]
[375135805,1753537849428,-460.0,0.00019726,2]
[375135807,1753537849443,-460.0,0.00019726,2]
[375135809,1753537849453,-460.0,0.0002,2]
[375135811,1753537849463,-460.0,0.00020273,2]
[375135814,1753537849473,-460.0,0.00020547,2]
[375135816,1753537849483,-460.0,0.00020821,2]
[375135818,1753537849493,-460.0,0.00020821,2]
[375135819,1753537849503,-460.0,0.00021095,2]
[375135821,1753537849513,-460.0,0.00021095,2]
[375135823,1753537849522,-460.0,0.00021369,2]
[375135840,1753537849664,-460.0,0.00021369,2]
[375135842,1753537849674,-460.0,0.00021643,2]
[375135844,1753537849684,-460.0,0.00021643,2]
[375135846,1753537849694,-460.0,0.00021917,2]
[375135847,1753537849703,-73.52474167,0.00021917,2]
[375136194,1753538323734,1000.0,0.00016,6]
[375136195,1753538375522,-4391.6288708,0.00018589,2]
[375136196,1753538375545,-1200.0,0.00019177,2]
[375136197,1753538375566,-300.0,0.00019177,2]
[375136198,1753538375588,-460.0,0.00019178,2]
[375136199,1753538375611,-460.0,0.00019178,2]
[375136200,1753538375637,-461.36614137,0.00019178,2]
[375136201,1753538375660,-460.0,0.00019178,2]
[375136202,1753538375682,-461.30363361,0.00019178,2]
[375136203,1753538375702,-460.0,0.00019178,2]
[375136204,1753538375723,-460.0,0.00019178,2]
[375136205,1753538375744,-460.0,0.00019178,2]
[375136206,1753538375765,-461.07185386,0.00019178,2]
[375136207,1753538375786,-1000.0,0.00019178,2]
[375136208,1753538375807,-465.05169959,0.00019178,2]
[375136209,1753538375827,-460.86123674,0.00019178,2]
[375136210,1753538375848,-460.0,0.00019178,2]
[375136211,1753538375870,-460.0,0.00019178,2]
[375136212,1753538375892,-460.0,0.00019178,2]
[375136213,1753538375913,-460.0,0.00019178,2]
[375136214,1753538375936,-460.0,0.00019178,2]
[375136215,1753538375960,-529.26,0.00019178,2]
[375136216,1753538375983,-460.0,0.00019178,2]
[375136217,1753538376006,-460.0,0.00019178,2]
[375136218,1753538376029,-460.0,0.00019178,2]
[375136219,1753538376052,-460.0,0.00019178,2]
[375136220,1753538376074,-460.0,0.00019178,2]
[375136221,1753538376095,-460.0,0.00019178,2]
[375136222,1753538376118,-802.69,0.00019178,2]
[375136223,1753538376142,-460.0,0.00019178,2]
[375136224,1753538376167,-460.0,0.00019178,2]
[375136225,1753538376190,-257.84605777,0.00019178,2]
[375136226,1753538376213,-1305.9,0.00019178,2]
[375136227,1753538376236,-756.36,0.00019178,2]
[375136228,1753538376258,-460.0,0.00019178,2]
[375136229,1753538376282,-460.0,0.00019178,2]
[375136230,1753538376306,-460.0,0.00019178,2]
[375136231,1753538376328,-460.0,0.00019178,2]
[375136232,1753538376350,-460.0,0.00019178,2]
[375136233,1753538376373,-460.0,0.00019178,2]
[375136234,1753538376394,-460.0,0.00019178,2]
[375136235,1753538376417,-460.0,0.00019178,2]
[375136236,1753538376440,-460.0,0.00019178,2]
[375136237,1753538376462,-460.0,0.00019178,2]
[375136238,1753538376484,-460.0,0.00019178,2]
[375136239,1753538376507,-460.0,0.00019178,2]
[375136240,1753538376530,-460.0,0.00019178,2]
[375136241,1753538376551,-336.36,0.00019178,2]
[375136242,1753538376574,-515.97,0.00019178,2]
[375136243,1753538376596,-460.0,0.00019178,2]
[375136244,1753538376618,-460.0,0.00019178,2]
[375136245,1753538376640,-460.0,0.00019178,2]
[375136246,1753538376663,-194.33050626,0.00019178,2]
[375136248,1753538765392,159.906695,0.00013699,2]
[375136251,1753538836083,-3870.48461858,0.00018887,2]
[375136303,1753539038532,-1129.51538142,0.00018887,2]
[375136304,1753539038543,-460.0,0.00019178,2]
[375136305,1753539038553,-460.0,0.00019178,2]
[375136306,1753539038562,-460.0,0.00019178,2]
[375136307,1753539038572,-1000.0,0.00019178,2]
[375136308,1753539038582,-460.22698712,0.00019178,2]
[375136309,1753539038591,-460.0,0.00019178,2]
[375136310,1753539038601,-460.0,0.00019178,2]
[375136311,1753539038610,-460.0,0.00019178,2]
[375136312,1753539038620,-460.0,0.00019178,2]
[375136313,1753539038629,-213.58859441,0.00019178,2]
[375136314,1753539038639,-460.0,0.00019178,2]
[375136315,1753539038649,-460.0,0.00019178,2]
[375136316,1753539038658,-460.0,0.00019178,2]
[375136317,1753539038668,-460.0,0.00019178,2]
[375136318,1753539038678,-460.0,0.00019178,2]
[375136319,1753539038688,-287.51209431,0.00019178,2]
[375136320,1753539038702,-460.0,0.00019178,2]
[375136321,1753539038713,-460.0,0.00019178,2]
[375136322,1753539038723,-225.85,0.00019178,2]
[375136323,1753539038732,-460.0,0.00019178,2]
[375136324,1753539038742,-460.0,0.00019178,2]
[375136325,1753539038752,-460.0,0.00019178,2]
[375136326,1753539038762,-460.0,0.00019178,2]
[375136327,1753539038772,-460.0,0.00019178,2]
[375136328,1753539038782,-460.0,0.00019178,2]
[375136329,1753539038791,-460.0,0.00019178,2]
[375136330,1753539038801,-386.47525833,0.00019178,2]
[375136331,1753539038811,-460.0,0.00019178,2]
[375136332,1753539038821,-460.0,0.00019178,2]
[375136333,1753539038830,-460.0,0.00019178,2]
[375136334,1753539038839,-331.77340245,0.00019178,2]
[375136335,1753539038849,-460.0,0.00019178,2]
[375136336,1753539038860,-460.0,0.00019178,2]
[375136337,1753539039009,-460.0,0.00019178,2]
[375136338,1753539039019,-460.0,0.00019178,2]
[375136339,1753539039029,-390.43863774,0.00019178,2]
[375136340,1753539039039,-460.0,0.00019178,2]
[375136341,1753539039048,-460.0,0.00019178,2]
[375136342,1753539039058,-460.0,0.00019178,2]
[375136343,1753539039067,-460.0,0.00019178,2]
[375136344,1753539039076,-460.0,0.00019178,2]
[375136345,1753539039086,-460.0,0.00019178,2]
[375136346,1753539039096,-1643.51,0.00019178,2]
[375136347,1753539039105,-460.0,0.00019178,2]
[375136348,1753539039115,-460.0,0.00019178,2]
[375136349,1753539039124,-460.0,0.00019178,2]